Cogmind - Beta 10.2 --- EXPLORER MODE // 2022.01.25 @ 22:01:24 Player: WagieInCagie Result: Self-destructed Performance ------------- Evolutions (3) 1500 Regions Visited (6) 1200 Robots Destroyed (28) 140 Value Destroyed (858) 858 Prototype IDs (1) 20 Alien Tech Used (0) 0 Bonus (0) 0 TOTAL SCORE: 3718 Bonus ------- None Cogmind --------- Core Integrity 551/700 Matter 300/300 Energy 100/100 System Corruption 0% Temperature Cool (0) Movement Core (100) Ox1 Location -7/Lower Caves Parts ------- > --- POWER (1) -------- (None) > --- PROPULSION (5) --- (None) > --- UTILITY (6) ------ Advanced Signal Interpreter Advanced Signal Interpreter Seismic Analyzer Actuator Array > --- WEAPON (2) ------- (None) > --- INVENTORY (4) ---- Improved Cooling System Peak State ------------ > --- POWER ------------ Light Angular Momentum Engine > --- PROPULSION ------- Hover Unit Hover Unit Improved Hover Unit Airjet > --- UTILITY ---------- Sensor Array Advanced Signal Interpreter Advanced Signal Interpreter Improved Terrain Scanner Seismic Analyzer > --- WEAPON ----------- Heavy Battle Rifle Great Maul > --- INVENTORY -------- Light Nuclear Core Hover Unit Rocket Launcher Improved Datajack [Rating: 29] Favorites ----------- Power Ion Engine Engine Ion Engine Power Core Micro Nuclear Core Propulsion Hover Unit Leg Carbon-fiber Leg Wheel Wheel Hover Unit Hover Unit Utility Advanced Signal Interpreter Device Improved Terrain Scanner Storage High-capacity Storage Unit Processor Advanced Signal Interpreter Protection Light Armor Plating Weapon Mining Laser Energy Gun Backup Laser I Ballistic Gun Assault Rifle Launcher Rocket Launcher Special Weapon Mining Laser Impact Weapon Great Maul Special Melee Weapon Improved Datajack Build | -11 -10 -10 -9 -8 -7 -7 ------- Run | Scr Mat Min Mat Mat Fac Low Slots Evolved 7 | . 1 . 2 2 2 . Power . | . . . . . . . Propulsion 3 | . . . 1 1 1 . Utility 4 | . 1 . 1 1 1 . Weapon . | . . . . . . . Parts Attached 47 | 12 8 2 3 16 2 4 Power 8 | 1 2 . . 4 1 . Engine 4 | 1 2 . . 1 . . Core 4 | . . . . 3 1 . Reactor . | . . . . . . . Propulsion 14 | 4 3 . 1 5 1 . Treads . | . . . . . . . Leg 3 | 2 . . . . 1 . Wheel 3 | 2 1 . . . . . Hover 8 | . 2 . 1 5 . . Flight . | . . . . . . . Utility 13 | 4 2 1 1 2 . 3 Device 5 | 1 . . 1 . . 3 Storage 1 | . . . . 1 . . Processor 6 | 2 2 1 . 1 . . Hackware . | . . . . . . . Protection 1 | 1 . . . . . . Artifact . | . . . . . . . Weapon 12 | 3 1 1 1 5 . 1 Energy Gun . | . . . . . . . Energy Cannon . | . . . . . . . Ballistic Gun 5 | 2 . 1 . 2 . . Ballistic Cannon . | . . . . . . . Launcher 1 | . . . . 1 . . Special Weapon 2 | 1 1 . . . . . Impact Weapon 2 | . . . . 2 . . Slashing Weapon . | . . . . . . . Piercing Weapon . | . . . . . . . Special Melee Weapon 2 | . . . 1 . . 1 Unidentified Prototypes . | . . . . . . . Parts Lost 20 | . . . . 16 . 4 Power 4 | . . . . 3 . 1 Propulsion 7 | . . . . 6 . 1 Utility 3 | . . . . 2 . 1 Weapon 6 | . . . . 5 . 1 Highest Loss Streak 8 | . . . . 8 . 2 Average Slot Usage (%) 74 | . 88 100 99 76 32 37 Engine 6 | . 12 12 10 5 . . Core 2 | . . . . 1 6 6 Leg 1 | . . . . . 5 6 Wheel 4 | . 23 . . . . . Hover 14 | . . 25 29 23 . . Device 10 | . 12 12 20 12 . 2 Processor 20 | . 14 25 20 21 21 21 Ballistic Gun 5 | . 12 12 . 2 . . Special Weapon 5 | . 12 12 10 2 . . Special Melee Weapon 2 | . . . 9 2 . 1 Naked Turns . | . . . . . . . Heaviest Build 19 | 10 9 11 12 19 6 14 Greatest Support 29 | 20 20 12 20 29 15 15 Greatest Overweight (x) 3 | . . . . 1 1 3 Average Overweight (x) . | . . . . . . . Largest Inventory Capacity 12 | 4 4 4 4 12 4 4 Average Capacity 4 | 4 4 4 4 4 4 4 Most Carried 4 | 4 4 4 4 4 2 3 Average Carried 2 | 2 3 3 3 3 1 . Final Capacity 4 | 4 4 4 4 4 4 4 Final Carried 4 | 4 3 4 3 1 1 1 Class Distribution -------------------- 59% | Hacker-Mutant 19% | Scavenger-Scout 15% | Scavenger-Mutant 6% | Hacker-Scout Dominant Class ---------------- Hacker-Mutant | -10/Materials Scavenger-Mutant | -10/Mines Scavenger-Scout | -9/Materials Scavenger-Scout | -8/Materials Hacker-Mutant | -7/Factory Hacker-Mutant | -7/Lower Caves Resources | -11 -10 -10 -9 -8 -7 -7 ----------- Run | Scr Mat Min Mat Mat Fac Low Matter Collected 888 | 349 180 38 10 249 30 32 Remotely . | . . . . . . . Salvage Created 935 | 94 243 115 . 483 . . Parts 64 | 16 19 8 . 21 . . Haulers Intercepted 1 | . 1 . . . . . Recyclers Shooed . | . . . . . . . Parts Field Recycled . | . . . . . . . Retrieved Matter . | . . . . . . . Parts Self-Destructed . | . . . . . . . Prevented . | . . . . . . . Kills | -11 -10 -10 -9 -8 -7 -7 ------- Run | Scr Mat Min Mat Mat Fac Low Combat Hostiles Destroyed 17 | . 3 3 . 11 . . Guns 13 | . 2 3 . 8 . . Cannons 1 | . 1 . . . . . AOE 2 | . . . . 2 . . Classes Destroyed 6 | 1 3 1 . 1 . . Builder 1 | . . 1 . . . . Tunneler 5 | 5 . . . . . . Hauler 1 | . 1 . . . . . Watcher 4 | . 3 . . 1 . . Grunt 15 | . 3 3 . 9 . . Sentry 2 | . . . . 2 . . Best Kill Streak 4 | 3 4 3 . 4 . . Combat Bots Only 3 | . 2 3 . 3 . . Max Kills in Single Turn 1 | 1 1 1 . 1 . . Gunslinging . | . . . . . . . Exploded 1 | . . . . 1 . . Melee . | . . . . . . . Uniques/NPCs Destroyed . | . . . . . . . Combat | -11 -10 -10 -9 -8 -7 -7 -------- Run | Scr Mat Min Mat Mat Fac Low Damage Taken 1826 | . 108 27 9 1252 . 430 Core 697 | . 15 . . 533 . 149 Absorbed by Shields . | . . . . . . . Core Remaining (%) 74 | 100 . 94 100 3 . . Volleys Fired 128 | 11 37 6 4 70 . . Largest 2 | 2 2 1 1 2 . . Hottest 120 | 100 120 33 100 100 . . Shots Fired 144 | 16 38 6 4 80 . . Gun 123 | 15 28 6 . 74 . . Cannon . | . . . . . . . Launcher 3 | . . . . 3 . . Special 18 | 1 10 . 4 3 . . Kinetic 91 | 15 28 6 . 42 . . Thermal 50 | 1 10 . 4 35 . . Explosive 3 | . . . . 3 . . Electromagnetic . | . . . . . . . Robot Hit Streak 55 | 8 27 29 . 55 . . Robot Miss Streak 2 | 1 1 2 . 1 . . Penetration Max . | . . . . . . . Secondary Targets 1 | . . . . 1 . . Max Gunslinging Chain 1 | . . . . 1 . . Shots Hit Robots 130 | 13 28 4 . 84 . 1 Core Hits 52 | 5 12 4 . 31 . . Critical Hits 1 | . . . . 1 . . Critical Kills . | . . . . . . . Critical Parts Destroyed 1 | . . . . 1 . . Melee Attacks 13 | . . . . 12 . 1 Impact 9 | . . . . 9 . . Slashing . | . . . . . . . Piercing . | . . . . . . . Sneak Attacks 3 | . . . . 3 . . Combat Hostiles . | . . . . . . . Follow-up Attacks . | . . . . . . . Damage Inflicted 2351 | 170 296 97 . 1788 . . Guns 1634 | 170 272 97 . 1095 . . Cannons . | . . . . . . . Explosions 441 | . . . . 441 . . Melee 252 | . . . . 252 . . Ramming . | . . . . . . . Kinetic 1394 | 170 272 97 . 855 . . Thermal 364 | . 24 . . 340 . . Explosive 341 | . . . . 341 . . Electromagnetic . | . . . . . . . Impact 252 | . . . . 252 . . Slashing . | . . . . . . . Piercing . | . . . . . . . Highest Corruption . | . . . . . . . Average Corruption . | . . . . . . . Corruption Purged . | . . . . . . . Overload Shots . | . . . . . . . Overflow Damage 74 | . . . . 74 . . Projectiles . | . . . . . . . Explosions 38 | . . . . 38 . . Melee 36 | . . . . 36 . . Knockbacks . | . . . . . . . Impact . | . . . . . . . Kinetic . | . . . . . . . Secondary . | . . . . . . . Self-Inflicted Damage 121 | . . . . 121 . . Shots 4 | . . . . 4 . . Rammed . | . . . . . . . Targets Rammed . | . . . . . . . Kicked . | . . . . . . . Crushed . | . . . . . . . Highest Temperature 84 | 32 20 8 26 84 . . Average Temperature 20 | 19 12 4 13 27 . . Received Heat Transfer 1077 | . 99 24 9 891 . 54 Siege Activations . | . . . . . . . Robots Corrupted . | . . . . . . . Combat Hostiles . | . . . . . . . Parts Fried . | . . . . . . . Impact Corruptions 2 | . . . . 2 . . Robots Melted . | . . . . . . . Combat Hostiles . | . . . . . . . Parts Melted 2 | . . . . 2 . . Heat Transferred 1099 | . 50 . . 1049 . . Parts Sabotaged . | . . . . . . . Parts Stolen . | . . . . . . . Parts Stripped . | . . . . . . . Power Chain Reactions . | . . . . . . . Missiles Intercepted . | . . . . . . . Alert | -11 -10 -10 -9 -8 -7 -7 ------- Run | Scr Mat Min Mat Mat Fac Low Peak Influence 307 | 25 200 130 50 307 34 . Initial 55 | . 12 55 35 14 19 . Average 68 | 11 79 61 36 101 24 . Maximum Alert Level 1 | . 1 . . 1 . . Low Security (%) 93 | 100 94 100 100 84 100 . Level 1 6 | . 5 . . 15 . . Level 2 . | . . . . . . . Level 3 . | . . . . . . . Level 4 . | . . . . . . . Level 5 . | . . . . . . . High Security . | . . . . . . . Max Security . | . . . . . . . Squads Dispatched 4 | . . 1 . 3 . . Investigation 3 | . . 1 . 2 . . Extermination . | . . . . . . . Reinforcement 1 | . . . . 1 . . Assault . | . . . . . . . Garrison . | . . . . . . . Intercept . | . . . . . . . Construction Impeded . | . . . . . . . Haulers Reinforced . | . . . . . . . Stealth | -11 -10 -10 -9 -8 -7 -7 --------- Run | Scr Mat Min Mat Mat Fac Low Distress Signals 3 | . 2 . . . 1 . Communications Jammed . | . . . . . . . Distress Signals . | . . . . . . . Times Spotted 44 | . 13 3 1 22 1 4 Peak Tracking Total 5 | . 5 2 2 5 4 3 Tactical Retreats 8 | . 2 . . 3 . 3 Traps | -11 -10 -10 -9 -8 -7 -7 ------- Run | Scr Mat Min Mat Mat Fac Low Traps Triggered . | . . . . . . . Indirectly . | . . . . . . . Trap Hack Attempts . | . . . . . . . Triggered . | . . . . . . . Disarmed . | . . . . . . . Reprogrammed . | . . . . . . . Reused . | . . . . . . . Traps Extracted . | . . . . . . . Installed . | . . . . . . . Triggered . | . . . . . . . Machines | -11 -10 -10 -9 -8 -7 -7 ---------- Run | Scr Mat Min Mat Mat Fac Low Machines Disabled 1 | . . . . 1 . . Max in Single Turn 1 | . . . . 1 . . Machines Sabotaged . | . . . . . . . Garrisons Compromised . | . . . . . . . Overloaded Fab Kills . | . . . . . . . Fab Network Shutdowns . | . . . . . . . Hacking | -11 -10 -10 -9 -8 -7 -7 --------- Run | Scr Mat Min Mat Mat Fac Low Machines Accessed 7 | . 1 1 1 4 . . Terminals 3 | . 1 . 1 1 . . Fabricators . | . . . . . . . Repair Stations 2 | . . . . 2 . . Recycling Units . | . . . . . . . Scanalyzers 1 | . . . . 1 . . Garrison Access . | . . . . . . . Total Hacks 15 | . 3 1 2 9 . . Successful 13 | . 2 1 2 8 . . Failed 2 | . 1 . . 1 . . Catastrophic . | . . . . . . . Database Lockouts . | . . . . . . . Manual . | . . . . . . . Terminals 6 | . 3 . 2 1 . . Fabricators . | . . . . . . . Repair Stations 5 | . . . . 5 . . Recycling Units . | . . . . . . . Scanalyzers 3 | . . . . 3 . . Garrison Access . | . . . . . . . Terminal Hacks 6 | . 2 1 2 1 . . Record 1 | . . . 1 . . . Open Door 1 | . . 1 . . . . Locate Traps 1 | . 1 . . . . . Surveillance Status 1 | . . . . 1 . . Zone Layout 2 | . 1 . 1 . . . Fabricator Hacks . | . . . . . . . Repair Station Hacks 4 | . . . . 4 . . Scan Component 2 | . . . . 2 . . Repair 1 | . . . . 1 . . Refit 1 | . . . . 1 . . Recycling Unit Hacks . | . . . . . . . Scanalyzer 3 | . . . . 3 . . Insert Component 1 | . . . . 1 . . Analyze 2 | . . . . 2 . . Garrison Access Hacks . | . . . . . . . Unauthorized Hacks . | . . . . . . . Terminals . | . . . . . . . Fabricators . | . . . . . . . Repair Stations . | . . . . . . . Recycling Units . | . . . . . . . Scanalyzers . | . . . . . . . Garrison Access . | . . . . . . . Data Cores Recovered . | . . . . . . . Used . | . . . . . . . Hacking Detections 3 | . 1 . . 2 . . Full Trace Events 3 | . 1 . . 2 . . Feedback Events . | . . . . . . . Feedback Blocked . | . . . . . . . Robot Schematics Acquired . | . . . . . . . Robots Built . | . . . . . . . Matter . | . . . . . . . Time . | . . . . . . . Total Robot Build Rating . | . . . . . . . Part Schematics Acquired 1 | . . . . 1 . . Parts Built . | . . . . . . . Matter . | . . . . . . . Time . | . . . . . . . Total Part Build Rating . | . . . . . . . Parts Repaired 1 | . . . . 1 . . Time 32 | . . . . 32 . . Parts Recycled . | . . . . . . . Recycled Matter . | . . . . . . . Retrieved Matter . | . . . . . . . Retrieved Components . | . . . . . . . Parts Scanalyzed 1 | . . . . 1 . . Part Schematics Acquired 1 | . . . . 1 . . Parts Damaged 1 | . . . . 1 . . Bothacking | -11 -10 -10 -9 -8 -7 -7 ------------ Run | Scr Mat Min Mat Mat Fac Low Used RIF Installer . | . . . . . . . Robots Hacked 2 | . . . . 1 . 1 Non-combat 1 | . . . . 1 . . Combat 1 | . . . . . . 1 Robot Hacks Applied 4 | . . . . 3 . 1 parse_system 2 | . . . . 1 . 1 no_distress 1 | . . . . 1 . . check_alert 1 | . . . . 1 . . Relay Couplers Released . | . . . . . . . Robots Rewired . | . . . . . . . Allies Hacked . | . . . . . . . Hacks Repelled . | . . . . . . . Allies | -11 -10 -10 -9 -8 -7 -7 -------- Run | Scr Mat Min Mat Mat Fac Low Total Allies . | . . . . . . . Largest Group . | . . . . . . . Highest-Rated Group . | . . . . . . . Highest-Rated Ally . | . . . . . . . Total Orders . | . . . . . . . Ally Attacks . | . . . . . . . Total Damage . | . . . . . . . Kills . | . . . . . . . Allies Corrupted . | . . . . . . . Allies Melted . | . . . . . . . Intel | -11 -10 -10 -9 -8 -7 -7 ------- Run | Scr Mat Min Mat Mat Fac Low Robot Analysis Total . | . . . . . . . Derelict Logs Recovered . | . . . . . . . Drone Launches . | . . . . . . . Drone Recoveries . | . . . . . . . Exploration | -11 -10 -10 -9 -8 -7 -7 ------------- Run | Scr Mat Min Mat Mat Fac Low Turns Passed 2235 | 175 349 370 211 564 88 478 Spaces Moved 1920 | 122 258 491 188 395 84 382 Core 123 | 13 . . . 27 34 49 Treads . | . . . . . . . Legs 436 | 53 . . . . 50 333 Wheels 302 | 56 246 . . . . . Hover 1059 | . 12 491 188 368 . . Flight . | . . . . . . . Fastest Speed 48 | 50 56 56 52 48 50 100 Average Speed 75 | 94 78 56 52 52 96 120 Slowest Speed 200 | 120 80 56 56 100 120 200 Overloaded Moves . | . . . . . . . Propulsion Burnouts . | . . . . . . . Robots Hopped . | . . . . . . . Cave-ins Triggered . | . . . . . . . Exploration Rate (%) 33 | 6 33 88 22 29 2 53 Regions Visited 6 Branch Regions 2 Pre-discovered Areas . | . . . . . . . Known Exits Taken 6 | 1 1 1 1 1 1 . Unknown Exits Taken . | . . . . . . . Scrap Searched 1 | . . . . . . 1 Spaces Dug 16 | . 9 . 4 3 . . Terrain Destroyed 56 | . 9 . 4 43 . . Melee . | . . . . . . . Projectile 16 | . 9 . 4 3 . . AOE 40 | . . . . 40 . . Terrain Rammed . | . . . . . . . Walls Destroyed . | . . . . . . . Machines Disabled . | . . . . . . . Actions | -11 -10 -10 -9 -8 -7 -7 --------- Run | Scr Mat Min Mat Mat Fac Low Total 2510 | 164 346 580 288 643 91 398 Wait 344 | . 29 74 92 138 4 7 Move 1914 | 121 257 490 187 394 83 382 Hop . | . . . . . . . Pick Up 38 | 14 7 4 1 7 2 3 Fast Attach 8 | 3 1 1 . 3 . . Attach 26 | 8 1 . 3 8 2 4 Detach 3 | . . . 1 1 . 1 Swap 13 | 1 6 1 . 5 . . Drop 23 | 6 8 4 . 5 . . Fire 128 | 11 37 6 4 70 . . Melee 13 | . . . . 12 . 1 Ram . | . . . . . . . Kick . | . . . . . . . Crush . | . . . . . . . Escape Stasis . | . . . . . . . Rewire . | . . . . . . . Trap . | . . . . . . . Miscellaneous . | . . . . . . . Route ------- -11/Scrapyard -10/Materials -10/Mines -9/Materials -8/Materials -7/Factory -7/Lower Caves History --------- Turn | Location | Event 11 | -11/Scrapyard | Identified exit to Materials 11 | -11/Scrapyard | Discovered exit to Materials (range 14) 176 | -11/Scrapyard | Entered Materials 176 | -10/Materials | Evolved 1 slot: Utility x1 304 | -10/Materials | Build established: Hacker-Mutant 384 | -10/Materials | Identified exit to Mines 384 | -10/Materials | Discovered exit to Mines (range 12) 525 | -10/Materials | Entered Mines 614 | -10/Mines | A weapon hastily lodged in a ceiling crevice suddenly fell to the ground 655 | -10/Mines | Found a damaged Exp. Sensor Array with a note attached 657 | -10/Mines | Found Prototype Device 705 | -10/Mines | Received a Rocket Launcher from a helpful Derelict 731 | -10/Mines | Identified exit to Materials 731 | -10/Mines | Discovered exit to Materials (range 7) 802 | -10/Mines | Build established: Scavenger-Mutant 848 | -10/Mines | Met a Derelict shopkeep closing up shop 895 | -10/Mines | Entered Materials 895 | -9/Materials | Evolved 2 slots: Propulsion x1, Utility x1 1105 | -9/Materials | Identified exit to Materials 1105 | -9/Materials | Discovered exit to Materials (range 3) 1106 | -9/Materials | Entered another Materials area 1106 | -8/Materials | Evolved 2 slots: Propulsion x1, Utility x1 1129 | -8/Materials | Identified Exp. Sensor Array 1199 | -8/Materials | Build established: Scavenger-Scout 1464 | -8/Materials | Repaired Imp. Hover Unit 1516 | -8/Materials | Core integrity fell below 50% 1530 | -8/Materials | Lost 8 parts (2p3n1u2w) 1597 | -8/Materials | Identified exit to Factory 1597 | -8/Materials | Discovered exit to Factory (range 13) 1657 | -8/Materials | Core integrity fell below 20% 1668 | -8/Materials | Lost 6 parts (1p2n1u2w) 1670 | -8/Materials | Entered Factory 1670 | -7/Factory | Evolved 2 slots: Propulsion x1, Utility x1 1745 | -7/Factory | Identified exit to Lower Caves 1745 | -7/Factory | Discovered exit to Lower Caves (range 12) 1754 | -7/Factory | Build established: Hacker-Mutant 1758 | -7/Factory | Entered Lower Caves 1821 | -7/Lower Caves | Encountered a Warlord checkpoint 2236 | -7/Lower Caves | Self-destructed Last Messages --------------- 02054_ H-55 Commando retrieves Drone. 02073_ Acquired 10 matter. 02075_ Acquired 4 matter. 02077_ Penetrated by Slug. 02080_ Acquired 1 matter. 02082_ Acquired 2 matter. 02084_ Penetrated by Slug. 02084_ Shock Absorption System destroyed. 02097_ Slug penetrates Wall. 02103_ Penetrated by Slug. 02106_ Slug penetrates Wall. 02124_ Penetrated by Slug. 02159_ Slug penetrates Wall. 02174_ Penetrated by Slug. 02174_ Carbon-fiber Leg destroyed. 02177_ Slug penetrates Wall. 02180_ Penetrated by Slug. 02183_ Slug penetrates Wall. 02189_ Penetrated by Slug. 02199_ Mic. Nuclear Core destroyed. Map ----- +----------------------------------------------------+ | | | | | | | | | | | | | ?????????????????????????????????????????????????? | | ?????????????????????????????????????????????????? | | ?????????????????????????????????????????????????? | | ?????????????????????????????????????????????????? | | ?????????????????????????????????????????????????? | | ?????????????????????????????????????????????????? | | ?????????????????????????????????????????????????? | | ?????????????????????????????????????????????????? | | ????????????????????????????####?????????????????? | | ???????????????????????????##""#?????????????????? | | ??????????????????????????##"""#?????????????????? | | ??????????????????????????#"""##?????????????????? | | ??????????????????????????# ""##????????????????? | | ??????????????????????????# #????????????????? | | ?????????????????????????## ##???????????????? | | ????????????????????????## ## ##??????????????? | | ????????????????????????# ##?????????????? | | ???????????????????????## #?????????????? | | ???????????????????????# ## #?????????????? | | ???????????????????????##@#### #?????????????? | | ????????????????????????###??# ##?????????????? | | ????????????????????????????## #??????????????? | | ????????????????????????????# #??????????????? | | ??????????????????????####### ##?????????????? | | ??????????????????????# ## #?????????????? | | ?????????????????????## ###?????????????? | | ????????????????????## ##???????????????? | | ???????????????###### #????????????????? | | ???????????????# ##???????????????? | | ??????####?????# #???????????????? | | ?????## #####?# #??????????????? | | ?????# #### #????????????? | | ?????# #?## #????????????? | | ??????# #?## ##????????????? | | ??????# ### ## #?????????????? | | ??????# ###### #?????????????? | | ??????# ####??# #######?????????????? | | ?????## ## #??# #???????????????????? | | ????## #?? #???????????????????? | | ##### ##? ???????????????????? | | # #?? ??????????????????? | | # ### #?? ?????????????????? | | # ### ## ##?????????????????????????? | | # ## ### #??????????????????????????? | +----------------------------------------------------+ Best States ------------- Heat Dissipation 34 Energy Generation 18 Energy Capacity 250 Matter Stores 300 Matter Capacity 300 Sight Range 18 Robot Scan Range 10 Terrain Scan Range 16 Terrain Scan Density 60 Armor Coverage 150 Resistance: KI 35 Resistance: TH 35 Resistance: EX 60 Resistance: EM 35 Resistance: I 35 Resistance: S 35 Resistance: P 35 Evasion (%) 55 Targeting Accuracy 5 Offensive Hacking 20 Item Schematics ----------------- Exp. Sensor Array | -8/Materials | Scanalyzed Robot Schematics ------------------ None Fabricated ------------ Nothing Alien Tech Used ----------------- None Achievements -------------- Safety First Challenges ------------ None Game ------ Seed SmartbombDerelictMachine Manual? 0 Play Time 01:01:26 Cumulative 11.9 hours Start 2022.01.25 @ 20:06:52 End 2022.01.25 @ 22:01:24 Sessions 1 Manual Loads 0 Difficulty Explorer Special Mode None Game No. 9 Rogue 4 Adventurer 2 Explorer 3 Win Type - Total 0 Types 0/0/0/0/0/0/0/0/0 Lore% 10 Gallery% 17 Achievement% 18 Wizard Run 0 Options --------- ASCII 0 Keyboard 0 Movement Mouse Keybinds 0 Fullscreen 0 Font 16/SmallcapsGlow Map View 76x50 Tactical HUD 1 Map Filters NONE Filters NONE Steam 1 RUN: ac8aeaf2-73fe-4c00-bf9e-631242bf6a8f